fUST/lending_fUST_20240916
["ID","MTS","AMOUNT","RATE_DAILY","PERIOD"]
[338295261,1726486054609,-1079.7,0.00034616,90]
[338295262,1726486054689,-515.12268259,0.00034616,14]
[338295263,1726486054769,-151.31077899,0.00034616,120]
[338295264,1726486054847,-401.48344958,0.00034616,120]
[338295265,1726486054928,-52592.71162015,0.00034616,30]
[338295266,1726486065521,-88506.65933245,0.00034616,30]
[338295267,1726486065600,-592.56653535,0.00034616,120]
[338295268,1726486065678,-660.70702592,0.00034616,120]
[338295269,1726486065760,-516.214482,0.00034616,30]
[338295270,1726486065836,-162.58802816,0.00034616,30]
[338295271,1726486065917,-234.0298893,0.00034616,120]
[338295272,1726486065997,-295159.58174753,0.00034616,120]
[338295273,1726486066077,-1195.08555831,0.00034616,120]
[338295276,1726486103100,-500.0,0.00026,30]
[338295277,1726486103177,-517.60053942,0.00026,30]
[338295278,1726486103255,-500.0,0.00026,30]
[338295279,1726486103339,-500.0,0.00028,30]
[338295280,1726486103418,-501.95029199,0.00028,30]
[338295281,1726486103501,-500.0,0.00028,30]
[338295282,1726486103585,-500.0,0.00028,30]
[338295283,1726486103666,-500.0,0.00028,30]
[338295284,1726486103751,-500.0,0.00028,30]
[338295285,1726486103833,-500.0,0.00028,30]
[338295286,1726486103910,-500.0,0.00028,30]
[338295287,1726486103990,-620.56253036,0.00028,30]
[338295288,1726486104067,-500.0,0.00028,30]
[338295289,1726486104147,-500.0,0.00028,30]
[338295290,1726486104226,-500.0,0.00028,30]
[338295291,1726486104304,-500.0,0.00028,30]
[338295292,1726486104378,-500.0,0.00028,30]
[338295293,1726486104457,-500.0,0.00028,30]
[338295294,1726486104535,-500.0,0.00028,30]
[338295295,1726486104622,-1000.0,0.00032876,120]
[338295296,1726486104703,-1000.0,0.00033835,120]
[338295297,1726486104784,-2490.5,0.000347,30]
[338295298,1726486104863,-1000.0,0.00034794,120]
[338295299,1726486104944,-166.50016104,0.00035014,30]
[338295300,1726486105024,-1000.0,0.00035753,120]
[338295301,1726486105104,-453.92515849,0.00036712,120]
[338295302,1726486105190,-1983248.9613187,0.00041,30]
[338295303,1726486108833,175.69856935,0.00012,7]
[338295304,1726486111116,-462479.1153071,0.00041,30]
[338295305,1726486111191,-200.0,0.00041,30]
[338295306,1726486111263,-154.06459335,0.00041027,37]
[338295307,1726486111338,-152.0,0.00041041,31]
[338295308,1726486111415,-647.0,0.00041068,120]
[338295309,1726486111491,-647.0,0.00041068,120]
[338295310,1726486111568,-647.0,0.00041068,120]
[338295311,1726486111649,-647.0,0.00041068,120]
[338295312,1726486111728,-647.0,0.00041068,120]
[338295313,1726486111805,-647.0,0.00041068,120]
[338295314,1726486111880,-647.0,0.00041068,120]
[338295315,1726486111958,-647.0,0.00041068,120]
[338295316,1726486112035,-647.0,0.00041068,120]
[338295317,1726486112110,-647.0,0.00041068,120]
[338295318,1726486112188,-647.0,0.00041068,120]
[338295319,1726486112263,-647.0,0.00041068,120]
[338295320,1726486112341,-647.0,0.00041068,120]
[338295321,1726486112419,-647.0,0.00041068,120]
[338295322,1726486112496,-647.0,0.00041068,120]
[338295323,1726486112572,-647.0,0.00041068,120]
[338295324,1726486112647,-647.0,0.00041068,120]
[338295325,1726486112727,-647.0,0.00041068,120]
[338295326,1726486112802,-647.0,0.00041068,120]
[338295327,1726486112879,-647.0,0.00041068,120]
[338295328,1726486112955,-647.0,0.00041068,120]
[338295329,1726486113030,-647.0,0.00041068,120]
[338295330,1726486113108,-647.0,0.00041068,120]
[338295331,1726486113188,-647.0,0.00041068,120]
[338295332,1726486113266,-647.0,0.00041068,120]
[338295333,1726486113346,-647.0,0.00041068,120]
[338295334,1726486113427,-647.0,0.00041068,120]
[338295335,1726486113505,-647.0,0.00041068,120]
[338295336,1726486113586,-647.0,0.00041068,120]
[338295337,1726486113665,-647.0,0.00041068,120]
[338295338,1726486113745,-647.0,0.00041068,120]
[338295339,1726486113830,-647.0,0.00041068,120]
[338295340,1726486113915,-647.0,0.00041068,120]
[338295341,1726486114231,-647.0,0.00041068,120]
[338295342,1726486114313,-647.0,0.00041068,120]
[338295343,1726486114392,-647.0,0.00041068,120]
[338295344,1726486114472,-647.0,0.00041068,120]
[338295345,1726486114552,-647.0,0.00041068,120]
[338295346,1726486114639,-647.0,0.00041068,120]
[338295347,1726486114725,-647.0,0.00041068,120]
[338295348,1726486114807,-647.0,0.00041068,120]
[338295349,1726486114884,-647.0,0.00041068,120]
[338295350,1726486114961,-647.0,0.00041068,120]
[338295351,1726486115039,-647.0,0.00041068,120]
[338295352,1726486115123,-647.0,0.00041068,120]
[338295353,1726486115203,-647.0,0.00041068,120]
[338295354,1726486115279,-647.0,0.00041068,120]
[338295355,1726486115358,-647.0,0.00041068,120]
[338295356,1726486115436,-647.0,0.00041068,120]
[338295357,1726486115511,-647.0,0.00041068,120]
[338295358,1726486115584,-647.0,0.00041068,120]
[338295359,1726486115657,-647.0,0.00041068,120]
[338295360,1726486115731,-647.0,0.00041068,120]
[338295361,1726486115806,-647.0,0.00041068,120]
[338295362,1726486115879,-647.0,0.00041068,120]
[338295363,1726486115951,-1500.0,0.00041087,42]
[338295364,1726486116026,-1153.33,0.00041095,30]
[338295365,1726486116100,-1023.028761,0.00041095,120]
[338295366,1726486116173,-580.0,0.000412,120]
[338295367,1726486116247,-1153.33,0.00041369,30]
[338295368,1726486116320,-500000.0,0.0004144,30]
[338295369,1726486116394,-1588.96,0.0004158,60]
[338295370,1726486116466,-1153.33,0.00041643,30]
[338295371,1726486116541,-6815.25,0.00041643,120]
[338295372,1726486116618,-17787.71920279,0.00041643,60]
[338295373,1726486116694,-224.816,0.00041884,62]
[338295375,1726486116772,-1153.33,0.00041917,30]
[338295376,1726486116842,-124788.66059467,0.00042,30]
[338295377,1726486116914,-1258.96,0.00042,32]
[338295378,1726486116987,-1000.0,0.00042,30]
[338295379,1726486117059,-268.99791954,0.00042,120]
[338295380,1726486117152,-500.0,0.00042,30]
[338295381,1726486117227,-1153.33,0.00042191,30]
[338295382,1726486117301,-1500.0,0.00042261,42]
[338295383,1726486117376,-502.36,0.00042277,120]
[338295384,1726486117450,-502.36,0.00042277,120]
[338295385,1726486117525,-502.36,0.00042277,120]
[338295386,1726486117600,-502.36,0.00042277,120]
[338295387,1726486117673,-502.36,0.00042277,120]
[338295388,1726486117746,-580.0,0.000423,120]
[338295389,1726486117821,-500000.0,0.0004244,30]
[338295390,1726486117898,-1153.33,0.00042465,30]
[338295391,1726486117979,-1153.33,0.00042739,30]
[338295392,1726486118056,-6815.25,0.00042739,120]
[338295393,1726486118134,-151.0,0.00042822,120]
[338295394,1726486118212,-165046.28970583,0.00043,120]
[338295395,1726486118290,-150.0,0.00043,60]
[338295396,1726486118375,-300.66396277,0.00043,120]
[338295397,1726486118451,-158965.11395295,0.00043,120]
[338295399,1726486120645,1006.67272686,2.5e-05,2]
[338295400,1726486123572,-284528.1837703,0.00043,120]
[338295401,1726486123649,-500.0,0.00043,30]
[338295402,1726486123723,-1776.3632,0.00043,120]
[338295403,1726486123797,-216.41674886,0.00043,120]
[338295404,1726486123867,-5000.0,0.00043,30]
[338295405,1726486123944,-150.0,0.00043,30]
[338295406,1726486124018,-1153.33,0.00043013,30]
[338295407,1726486124091,-1153.33,0.00043287,30]
[338295408,1726486124167,-151.0,0.0004337,120]
[338295409,1726486124240,-705.0,0.000434,120]
[338295410,1726486124316,-1500.0,0.00043435,42]
[338295411,1726486124392,-500000.0,0.0004344,30]
[338295412,1726486124467,-1000.0,0.000435,120]
[338295413,1726486124540,-1000.0,0.00043561,120]
[338295414,1726486124611,-1153.33,0.00043561,30]
[338295415,1726486124683,-1000.0,0.00043753,120]
[338295416,1726486124763,-8685.47,0.00043835,120]
[338295417,1726486124838,-201.85599911,0.00043835,120]
[338295418,1726486124918,-1377.47,0.00043835,120]
[338295419,1726486124996,-200.77617111,0.00043835,120]
[338295420,1726486125271,-358.90949794,0.00043835,120]
[338295421,1726486125344,-500.0,0.00043835,120]
[338295422,1726486125415,-1153.33,0.00043835,120]
[338295423,1726486125487,-2000.0,0.00043835,30]
[338295424,1726486125558,-2000.0,0.00043835,30]
[338295425,1726486125628,-2000.0,0.00043835,30]
[338295426,1726486125700,-2000.0,0.00043835,30]
[338295427,1726486125774,-2000.0,0.00043835,30]
[338295428,1726486125846,-2000.0,0.00043835,30]
[338295429,1726486125920,-2000.0,0.00043835,30]
[338295430,1726486125994,-2000.0,0.00043835,30]
[338295431,1726486126066,-2000.0,0.00043835,30]
[338295432,1726486126138,-2000.0,0.00043835,30]
[338295433,1726486126211,-926.17755048,0.00043835,30]
[338295434,1726486126285,-2057.74533536,0.00043835,30]
[338295435,1726486126364,-6815.25,0.00043835,120]
[338295436,1726486126439,-188.85908365,0.000439,120]
[338295437,1726486126513,-1000.0,0.00043945,120]
[338295438,1726486126589,-150.0,0.00044,60]
[338295439,1726486126665,-500.0,0.00044,120]
[338295440,1726486126740,-11683.85460427,0.00044,120]
[338295441,1726486126813,-253.571464,0.00044,30]
[338295442,1726486126887,-1153.33,0.00044109,120]
[338295443,1726486126960,-828.20172138,0.00044136,120]
[338295444,1726486127035,-8685.47,0.00044383,120]
[338295446,1726486127118,-1377.47,0.00044383,120]
[338295447,1726486127198,-1153.33,0.00044383,120]
[338295448,1726486127276,-500000.0,0.0004444,30]
[338295449,1726486127353,-1500.0,0.00044609,42]
[338295450,1726486127431,-1153.34085757,0.00044657,120]
[338295451,1726486127507,-393.52501013,0.000447,120]
[338295452,1726486127585,-152.0,0.00044712,31]
[338295453,1726486127661,-8685.47,0.00044931,120]
[338295454,1726486127736,-1377.47,0.00044931,120]
[338295455,1726486127809,-6815.25,0.00044931,120]
[338295456,1726486127882,-151.0,0.00044959,120]
[338295457,1726486127958,-3068.22408078,0.0004497,120]
[338295458,1726486128033,-500.0,0.00045,30]
[338295459,1726486128110,-200.0,0.00045,60]
[338295460,1726486128188,-1000.0,0.00045,120]
[338295461,1726486128265,-24549.65489064,0.00045,30]
[338295462,1726486128340,-10000.0,0.00045,120]
[338295463,1726486128422,-200000.0,0.00045,30]
[338295464,1726486128498,-2980.95900071,0.00045,120]
[338295465,1726486128572,-366.32331185,0.00045,30]
[338295466,1726486128655,-1000.0,0.00045,30]
[338295467,1726486128736,-1408.39045106,0.00045,120]
[338295468,1726486128817,-37271.20534681,0.00045,60]
[338295469,1726486128902,-1723.95680563,0.00045,120]
[338295470,1726486128975,-582.0,0.00045,120]
[338295471,1726486129055,-324883.20509836,0.00045,30]
[338295472,1726486131208,-5962.179012,0.00015917,2]
[338295474,1726486134206,-300.0,0.00043835,30]
[338295475,1726486134290,-200846.37490164,0.00045,30]
[338295476,1726486134375,-1115.08238747,0.00045,120]
[338295477,1726486134459,-24100.19856514,0.00045,120]
[338295478,1726486134541,-15142.408498,0.00045,120]
[338295479,1726486134624,-283.0,0.00045248,120]
[338295480,1726486134709,-283.0,0.00045248,120]
[338295481,1726486134790,-647.0,0.00045281,120]
[338295482,1726486134873,-647.0,0.00045281,120]
[338295483,1726486134956,-647.0,0.00045281,120]
[338295484,1726486135040,-647.0,0.00045281,120]
[338295485,1726486135123,-647.0,0.00045281,120]
[338295486,1726486135207,-647.0,0.00045281,120]
[338295487,1726486135291,-647.0,0.00045281,120]
[338295488,1726486135374,-647.0,0.00045281,120]
[338295489,1726486135452,-647.0,0.00045281,120]
[338295490,1726486135523,-647.0,0.00045281,120]
[338295491,1726486135600,-647.0,0.00045281,120]
[338295492,1726486135672,-647.0,0.00045281,120]
[338295493,1726486135743,-647.0,0.00045281,120]
[338295494,1726486135816,-647.0,0.00045281,120]
[338295495,1726486135887,-647.0,0.00045308,120]
[338295496,1726486135962,-647.0,0.00045308,120]
[338295497,1726486136032,-647.0,0.00045308,120]
[338295498,1726486136106,-647.0,0.00045308,120]
[338295499,1726486136180,-647.0,0.00045308,120]
[338295500,1726486136247,-647.0,0.00045308,120]
[338295501,1726486136324,-647.0,0.00045308,120]
[338295502,1726486136405,-647.0,0.00045308,120]
[338295503,1726486136852,-647.0,0.00045308,120]
[338295504,1726486136943,-500000.0,0.0004544,30]
[338295505,1726486137017,-8685.47,0.00045479,120]
[338295506,1726486137093,-1377.47,0.00045479,120]
[338295507,1726486137166,-280.0,0.000456,120]
[338295508,1726486137239,-1500.0,0.00045783,42]
[338295509,1726486137313,-1326.866,0.000458,60]
[338295510,1726486137390,-41552.0046692,0.000459,60]
[338295511,1726486137473,-3023.34932685,0.00045977,38]
[338295513,1726486137545,-163.58005051,0.00046,120]
[338295514,1726486137617,-1720.14585743,0.00046,120]
[338295515,1726486137687,-89634.36712526,0.00046,30]
[338295516,1726486137757,-250.0,0.00046,30]
[338295517,1726486137830,-8685.47,0.00046027,120]
[338295518,1726486137899,-1377.47,0.00046027,120]
[338295519,1726486137970,-3058.01228781,0.000463,120]
[338295520,1726486138047,-755.46031787,0.00046437,38]
[338295521,1726486138126,-500000.0,0.0004644,30]
[338295522,1726486138198,-1403.45119309,0.000465,120]
[338295523,1726486138271,-8685.47,0.00046575,120]
[338295524,1726486138343,-1377.47,0.00046575,120]
[338295525,1726486138409,-585.03,0.00046575,30]
[338295526,1726486138477,-585.03,0.00046575,30]
[338295527,1726486138546,-585.03,0.00046575,30]
[338295528,1726486138616,-585.03,0.00046575,30]
[338295529,1726486138685,-585.03,0.00046575,30]
[338295530,1726486138758,-585.03,0.00046575,30]
[338295531,1726486138828,-585.03,0.00046575,30]
[338295532,1726486138899,-585.03,0.00046575,30]
[338295533,1726486138969,-585.03,0.00046575,30]
[338295534,1726486139043,-585.03,0.00046575,30]
[338295535,1726486139114,-585.03,0.00046575,30]
[338295536,1726486139190,-585.03,0.00046575,30]
[338295537,1726486139262,-585.03,0.00046575,30]
[338295538,1726486139336,-585.03,0.00046575,30]
[338295539,1726486139410,-585.03,0.00046575,30]
[338295540,1726486139483,-585.03,0.00046575,30]
[338295541,1726486139554,-585.03,0.00046575,30]
[338295542,1726486139625,-585.03,0.00046575,30]
[338295543,1726486139698,-585.03,0.00046575,30]
[338295544,1726486139774,-585.03,0.00046575,30]
[338295545,1726486139846,-585.03,0.00046575,30]
[338295546,1726486139920,-585.03,0.00046575,30]
[338295547,1726486139994,-585.03,0.00046575,30]
[338295548,1726486140069,-585.06898077,0.00046575,30]
[338295549,1726486140147,-5000.0,0.00046575,120]
[338295550,1726486140235,-1354.37595948,0.00046575,120]
[338295551,1726486140310,-151.0,0.00046712,120]
[338295552,1726486140388,-898.3419412,0.000468,60]
[338295553,1726486140467,-1500.0,0.00046957,42]
[338295554,1726486140549,-1000.0,0.00047,47]
[338295555,1726486140622,-200000.0,0.00047,30]
[338295556,1726486140695,-300.0,0.00047,31]
[338295557,1726486140768,-151.0,0.00047096,120]
[338295558,1726486140839,-8685.47,0.00047123,120]
[338295559,1726486140913,-1377.47,0.00047123,120]
[338295560,1726486140986,-333734.46193828,0.0004744,30]
[338295580,1726486163737,-6995.58,0.00036164,31]
[338295581,1726486163811,-6995.58,0.0003726,33]
[338295582,1726486163886,-6995.58,0.00038356,120]
[338295583,1726486163960,-6995.58,0.00039452,120]
[338295584,1726486164034,-6995.58,0.00040547,120]
[338295585,1726486164109,-6995.58,0.00041643,120]
[338295586,1726486164185,-6995.58,0.00042739,120]
[338295587,1726486164259,-6995.58,0.00043835,120]
[338295588,1726486164333,-6995.58,0.00044931,120]
[338295589,1726486164407,-283.0,0.00045248,120]
[338295590,1726486164482,-283.0,0.00045248,120]
[338295591,1726486164555,-283.0,0.00045248,120]
[338295592,1726486164627,-283.0,0.00045248,120]
[338295593,1726486164696,-283.0,0.00045248,120]
[338295594,1726486164770,-283.0,0.00045248,120]
[338295595,1726486164841,-283.0,0.00045248,120]
[338295596,1726486164915,-283.0,0.00045248,120]
[338295597,1726486164988,-283.0,0.00045248,120]
[338295598,1726486165060,-283.0,0.00045248,120]
[338295599,1726486165132,-283.0,0.00045248,120]
[338295600,1726486165204,-283.0,0.00045248,120]
[338295601,1726486165275,-283.0,0.00045248,120]
[338295602,1726486165345,-283.0,0.00045248,120]
[338295603,1726486165417,-283.0,0.00045248,120]
[338295604,1726486165487,-283.0,0.00045248,120]
[338295605,1726486165558,-283.0,0.00045248,120]
[338295606,1726486165627,-283.0,0.00045248,120]
[338295607,1726486165694,-283.0,0.00045248,120]
[338295608,1726486165763,-283.0,0.00045248,120]
[338295609,1726486165830,-283.0,0.00045248,120]
[338295610,1726486165899,-283.0,0.00045248,120]
[338295611,1726486165972,-283.0,0.00045248,120]
[338295612,1726486166043,-283.0,0.00045248,120]
[338295613,1726486166113,-283.0,0.00045248,120]
[338295614,1726486166184,-283.0,0.00045248,120]
[338295615,1726486166256,-283.0,0.00045248,120]
[338295616,1726486166329,-283.0,0.00045248,120]
[338295617,1726486166401,-283.0,0.00045248,120]
[338295618,1726486166485,-283.0,0.00045248,120]
[338295620,1726486166560,-283.0,0.00045248,120]
[338295621,1726486166634,-6995.58,0.00046027,120]
[338295622,1726486166707,-6995.58,0.00047123,120]
[338295623,1726486166779,-166265.53806172,0.0004744,30]
[338295624,1726486166851,-281.984,0.0004744,30]
[338295625,1726486166924,-300.0,0.0004744,30]
[338295626,1726486166994,-1000.0,0.000475,120]
[338295627,1726486167067,-2937.81,0.00047503,30]
[338295628,1726486167141,-8685.47,0.00047671,120]
[338295629,1726486167215,-1377.47,0.00047671,120]
[338295630,1726486167286,-949.0,0.000477,120]
[338295631,1726486167362,-5000.0,0.000478,120]
[338295632,1726486167438,-5000.0,0.000479,120]
[338295633,1726486167513,-2917.16,0.00047945,120]
[338295634,1726486167588,-991.22,0.00047945,45]
[338295635,1726486167663,-165266.0,0.0004799,120]
[338295636,1726486167737,-54224.76708122,0.0004799,120]
[338295637,1726486167810,-1000.0,0.00047999,120]
[338295638,1726486167884,-1000.0,0.00048,48]
[338295639,1726486167956,-1000000.0,0.00048,120]
[338295640,1726486168029,-497079.20085706,0.00048,120]
[338295653,1726486173378,-150.0,0.00016078,2]
[338295654,1726486173403,-151.01190472,0.00016337,2]
[338295655,1726486193860,-153.0,0.00045221,120]
[338295656,1726486193931,-153.0,0.00045221,120]
[338295657,1726486194013,-153.0,0.00045221,120]
[338295658,1726486194090,-153.0,0.00045221,120]
[338295659,1726486194167,-153.0,0.00045221,120]
[338295660,1726486194235,-153.0,0.00045221,120]
[338295661,1726486194300,-153.0,0.00045221,120]
[338295662,1726486194367,-153.0,0.00045221,120]
[338295663,1726486194432,-153.0,0.00045221,120]
[338295664,1726486194493,-153.0,0.00045221,120]
[338295665,1726486194556,-153.0,0.00045221,120]
[338295666,1726486194619,-153.0,0.00045221,120]
[338295667,1726486194680,-153.0,0.00045221,120]
[338295668,1726486194746,-153.0,0.00045221,120]
[338295669,1726486194811,-153.0,0.00045221,120]
[338295670,1726486194883,-153.0,0.00045221,120]
[338295671,1726486194960,-153.0,0.00045221,120]
[338295672,1726486195025,-153.0,0.00045221,120]
[338295673,1726486195089,-153.0,0.00045221,120]
[338295674,1726486195154,-153.0,0.00045221,120]
[338295675,1726486195218,-153.0,0.00045221,120]
[338295676,1726486195283,-153.0,0.00045223,120]
[338295677,1726486195354,-252920.79914294,0.00048,120]
[338295678,1726486195425,-500.0,0.00048,30]
[338295679,1726486195493,-1000.0,0.00048,120]
[338295680,1726486195561,-300.0,0.00048,32]
[338295681,1726486195626,-2000.0,0.00048,60]
[338295682,1726486195691,-500.0,0.00048,120]
[338295683,1726486195761,-1000.0,0.00048,60]
[338295684,1726486195826,-50000.0,0.00048,120]
[338295685,1726486195892,-50000.0,0.00048,120]
[338295686,1726486195964,-1382.0,0.00048,120]
[338295687,1726486196034,-4007.35174081,0.00048,120]
[338295688,1726486196100,-6515.0,0.00048,40]
[338295689,1726486196166,-1025.65613062,0.00048,120]
[338295690,1726486196232,-250.0,0.00048,30]
[338295691,1726486196298,-1500.0,0.0004813,42]
[338295692,1726486196600,-50000.0,0.000482,38]
[338295693,1726486196666,-8685.47,0.00048219,120]
[338295694,1726486196735,-1377.47,0.00048219,120]
[338295695,1726486196801,-6995.68635091,0.00048219,120]
[338295696,1726486196866,-152.0,0.00048384,60]
[338295698,1726486196930,-50000.0,0.000484,35]
[338295701,1726486196999,-500000.0,0.0004844,30]
[338295704,1726486197064,-50000.0,0.000485,30]
[338295705,1726486197132,-50000.0,0.0004852,30]
[338295709,1726486197203,-50000.0,0.000486,60]
[338295710,1726486197274,-50000.0,0.0004861,60]
[338295711,1726486197338,-50000.0,0.0004862,60]
[338295712,1726486197403,-50000.0,0.0004863,62]
[338295713,1726486197468,-991.22,0.0004863,48]
[338295714,1726486197531,-50000.0,0.0004864,64]
[338295715,1726486197595,-8685.47,0.00048767,120]
[338295716,1726486197661,-1377.47,0.00048767,120]
[338295717,1726486197724,-5000.0,0.000488,120]
[338295718,1726486197789,-5000.0,0.000488,120]
[338295719,1726486197851,-988.98,0.000488,90]
[338295720,1726486197917,-750.94908569,0.000488,90]
[338295721,1726486197980,-336148.18185076,0.000488,120]
[338295722,1726486198043,-2982.0,0.00048888,120]
[338295723,1726486198108,-5000.0,0.000489,120]
[338295724,1726486198172,-1412.0,0.00048948,66]
[338295725,1726486198236,-47636.83894816,0.0004895,120]
[338295726,1726486198298,-1000.0,0.00048999,120]
[338295727,1726486198363,-1000.0,0.00049,49]
[338295728,1726486198427,-1000.0,0.00049,120]
[338295729,1726486198490,-237549.45675011,0.00049,120]
[338295730,1726486204279,-428.657,0.00048,30]
[338295731,1726486204360,-762450.54324989,0.00049,120]
[338295732,1726486204438,-750000.0,0.00049,120]
[338295733,1726486204517,-1000.0,0.00049,120]
[338295734,1726486204598,-2000.0,0.00049,30]
[338295735,1726486204680,-200000.0,0.00049,30]
[338295736,1726486204762,-35000.0,0.00049,120]
[338295737,1726486204847,-151197.84115154,0.00049,120]
[338295738,1726486204931,-300.0,0.00049,34]
[338295739,1726486205011,-2071.16143438,0.00049,120]
[338295740,1726486205091,-4000.0,0.00049,120]
[338295741,1726486205169,-1884.0,0.00049,120]
[338295742,1726486205253,-47301.00628102,0.00049,120]
[338295743,1726486205331,-5002.0,0.00049,30]
[338295744,1726486205408,-2490.5,0.00049,30]
[338295745,1726486205493,-151.0,0.00049233,120]
[338295746,1726486205574,-1500.0,0.00049304,42]
[338295747,1726486205653,-808.22,0.00049312,120]
[338295748,1726486205730,-808.22,0.00049312,120]
[338295749,1726486205805,-808.22,0.00049312,120]
[338295750,1726486205883,-808.22,0.00049312,120]
[338295751,1726486205963,-808.22,0.00049312,120]
[338295752,1726486206041,-808.22,0.00049312,120]
[338295753,1726486206119,-808.22,0.00049312,120]
[338295754,1726486206198,-808.22,0.00049312,120]
[338295755,1726486206274,-808.22,0.00049312,120]
[338295756,1726486206348,-808.22,0.00049312,120]
[338295757,1726486206429,-808.22,0.00049312,120]
[338295758,1726486206506,-808.22,0.00049312,120]
[338295759,1726486206584,-808.22,0.00049312,120]
[338295760,1726486206664,-808.22,0.00049312,120]
[338295761,1726486206745,-808.22,0.00049312,120]
[338295762,1726486206826,-808.22,0.00049312,120]
[338295763,1726486206902,-808.22,0.00049312,120]
[338295764,1726486206979,-808.22,0.00049312,120]
[338295765,1726486207056,-808.22,0.00049312,120]
[338295766,1726486207131,-808.22,0.00049312,120]
[338295767,1726486207207,-808.22,0.00049312,120]
[338295768,1726486207281,-808.22,0.00049312,120]
[338295769,1726486207360,-808.22,0.00049312,120]
[338295770,1726486207438,-808.39176678,0.00049312,120]
[338295771,1726486207520,-8685.47,0.00049315,120]
[338295772,1726486207603,-1377.47,0.00049315,120]
[338295773,1726486207681,-3000.0,0.00049315,120]
[338295774,1726486207759,-762.89911639,0.00049315,120]
[338295806,1726486232097,-2670.5029375,0.00015655,2]
[338295807,1726486232109,-329.4970625,0.00015655,2]
[338295812,1726486232390,-70.42283951,0.00016337,2]
[338295815,1726486232411,-259.50009799,0.00016337,2]
[338296349,1726486238163,-456.78150325,0.00016337,2]
[338296351,1726486238173,-300.0,0.00016437,2]
[338296353,1726486238183,-300.0,0.00016437,2]
[338296354,1726486238192,-204.616298,0.00016437,2]
[338296356,1726486238202,-5000.0,0.00016438,2]
[338296358,1726486238211,-2000.0,0.00016438,2]
[338296360,1726486238219,-337.93587875,0.00016438,2]
[338296362,1726486238231,-1662.06412125,0.00016438,2]
[338296364,1726486238242,-1000.0,0.00016438,2]
[338296365,1726486238251,-1127.0,0.00016438,2]
[338296367,1726486238260,-204.616298,0.00016866,2]
[338296369,1726486238269,-14333.47089189,0.00016878,2]
[338296374,1726486238324,-10566.52910811,0.00016878,2]
[338296376,1726486238334,-404.0,0.00017272,2]
[338296378,1726486238343,-600.0,0.00017274,2]
[338296380,1726486238354,-204.616298,0.00017294,2]
[338296381,1726486238363,-4000.0,0.00017575,2]
[338296383,1726486238373,-420.0,0.00017964,2]
[338296385,1726486238382,-1000.0,0.00018,18]
[338296387,1726486238392,-420.0,0.00018081,2]
[338296389,1726486238402,-500.0,0.00018145,2]
[338296390,1726486238412,-600.0,0.00018159,2]
[338296392,1726486238421,-500.0,0.00018645,2]
[338296394,1726486238431,-232.8036922,0.0001878,2]
[338296395,1726486238440,-232.80369218,0.00018785,2]
[338296397,1726486238450,-232.80369218,0.0001879,2]
[338296399,1726486238460,-232.80369218,0.00018795,2]
[338296401,1726486238469,-1000.0,0.000188,2]
[338296403,1726486238479,-150.0,0.000188,2]